fUSD/lending_fUSD_20260326
["ID","MTS","AMOUNT","RATE_DAILY","PERIOD"]
[418912624,1774531849969,-398.23705892,0.00016,2]
[418912625,1774531850077,-165.81014655,0.000134,2]
[418912626,1774531850087,-548.0,0.00015997,2]
[418912627,1774531850097,-35975.68820049,0.00016,2]
[418912628,1774531850112,-1153.567646,0.00016,2]
[418912629,1774531850136,-2297.16,0.00013592,2]
[418912630,1774531850146,-997.73831959,0.00016,2]
[418912631,1774531850277,-24435.45467934,0.000129,2]
[418912632,1774531850291,-4296.75088854,0.000129,2]
[418912633,1774531850310,-1388.44955998,0.000129,2]
[418912634,1774531850322,-4376.7060046,0.000129,2]
[418912640,1774532735127,-155.58942991,9.934e-05,2]
[418912641,1774532848105,-344.20909842,9.934e-05,2]
[418912642,1774532863424,156.48,5.43e-05,2]
[418912643,1774532863836,156.48,6.788e-05,2]
[418912644,1774532864074,156.48,8.145e-05,2]
[418912649,1774533033955,-241.0,8.691e-05,2]
[418912650,1774533033965,-162.7,8.691e-05,2]
[418912651,1774533033974,-1248.14473956,8.894e-05,2]
[418912652,1774533033987,-1363.17503185,8.894e-05,2]
[418912653,1774533034025,-555.59417147,8.894e-05,2]
[418912654,1774533034138,-1833.08605712,8.894e-05,2]
[418912655,1774533034147,-250.0,9.097e-05,2]
[418912656,1774533034157,-1200.0,9.298e-05,2]
[418912657,1774533034167,-5000.0,9.299e-05,2]
[418912658,1774533034176,-640.28586185,9.299e-05,2]
[418912659,1774533034186,-156.48,9.503e-05,2]
[418912660,1774533034195,-250.0,9.56e-05,2]
[418912661,1774533034204,-5000.0,9.56e-05,2]
[418912662,1774533034214,-250.0,9.645e-05,2]
[418912663,1774533034223,-57.15147167,9.934e-05,2]
[418912664,1774533034232,-243.0548411,0.0001,2]
[418912665,1774533034242,-235.5051,0.00010097,2]
[418912666,1774533034251,-150.0,0.000101,2]
[418912667,1774533034261,-416.43,0.00010197,2]
[418912668,1774533034271,-1680.0,0.00010228,2]
[418912669,1774533034280,-417.81511754,0.0001048,2]
[418912670,1774533034289,-1000.0,0.000105,2]
[418912671,1774533034300,-1500.0,0.00010645,2]
[418912672,1774533034309,-1570.0,0.0001075,2]
[418912673,1774533034320,-466.6,0.00010765,2]
[418912674,1774533034329,-156.48,0.0001086,2]
[418912675,1774533034339,-500.0,0.0001086,2]
[418912676,1774533034348,-150.0,0.00011053,2]
[418912677,1774533034358,-650.0,0.00011152,2]
[418912678,1774533034368,-792.0,0.00011215,2]
[418912679,1774533034378,-2351.0,0.00011251,2]
[418912680,1774533034388,-166.66,0.00011483,2]
[418912681,1774533034398,-150.99,0.00011483,2]
[418912682,1774533034408,-250.0,0.00011484,2]
[418912684,1774533034417,-150.0,0.00011485,2]
[418912685,1774533034427,-10101.53,0.00011486,2]
[418912686,1774533034436,-9999.99,0.00011486,2]
[418912687,1774533034446,-500.0,0.000115,2]
[418912688,1774533034455,-194.54195204,0.000115,2]
[418912689,1774533034464,-151.0,0.000115,2]
[418912690,1774533034474,-151.0,0.000115,2]
[418912691,1774533034484,-151.0,0.000115,2]
[418912692,1774533034495,-151.0,0.000115,2]
[418912693,1774533034505,-151.0,0.000115,2]
[418912694,1774533034515,-151.0,0.000115,2]
[418912695,1774533034525,-151.0,0.000115,2]
[418912696,1774533034534,-151.0,0.000115,2]
[418912697,1774533034544,-151.0,0.000115,2]
[418912698,1774533034554,-151.0,0.000115,2]
[418912699,1774533034564,-151.0,0.000115,2]
[418912700,1774533034573,-151.0,0.000115,2]
[418912701,1774533034582,-151.0,0.000115,2]
[418912702,1774533034592,-151.0,0.000115,2]
[418912703,1774533034602,-151.0,0.000115,2]
[418912704,1774533034612,-151.0,0.000115,2]
[418912705,1774533034622,-151.0,0.000115,2]
[418912706,1774533034632,-151.0,0.000115,2]
[418912707,1774533034641,-151.0,0.000115,2]
[418912708,1774533034651,-151.0,0.000115,2]
[418912709,1774533034661,-151.0,0.000115,2]
[418912710,1774533034670,-151.0,0.000115,2]
[418912711,1774533034681,-151.0,0.000115,2]
[418912712,1774533034691,-151.0,0.000115,2]
[418912713,1774533034700,-151.0,0.000115,2]
[418912714,1774533034710,-151.0,0.000115,2]
[418912715,1774533034725,-151.0,0.000115,2]
[418912716,1774533034735,-151.0,0.000115,2]
[418912717,1774533034747,-151.0,0.000115,2]
[418912718,1774533034758,-151.0,0.000115,2]
[418912719,1774533034769,-151.0,0.000115,2]
[418912720,1774533034779,-151.0,0.000115,2]
[418912721,1774533034789,-197.2442,0.000115,2]
[418912722,1774533034799,-878.32470845,0.00011506,2]
[418912723,1774533034809,-9999.99,0.00011507,2]
[418912724,1774533034819,-9999.99,0.00011507,2]
[418912725,1774533034829,-4001.15,0.00011507,2]
[418912726,1774533034839,-166.66,0.00011725,2]
[418912727,1774533034849,-962.7,0.00011814,2]
[418912728,1774533034859,-166.66,0.00011966,2]
[418912729,1774533034869,-5345.46755232,0.00012,7]
[418912730,1774533034879,-450.03,0.00012011,2]
[418912731,1774533034889,-166.66,0.00012208,2]
[418912732,1774533034899,-979.16666667,0.00012229,2]
[418912733,1774533034909,-160.0,0.00012229,2]
[418912734,1774533034918,-3292.0,0.00012376,2]
[418912735,1774533034930,-166.66,0.0001245,2]
[418912736,1774533034941,-255.0,0.00012553,2]
[418912737,1774533034951,-166.66,0.00012692,2]
[418912738,1774533034961,-5502.48686478,0.000127,2]
[418912739,1774533034971,-266.26516783,0.000127,2]
[418912740,1774533034980,-193.02020252,0.000127,2]
[418912741,1774533034990,-2500.0,0.000127,2]
[418912742,1774533035001,-500.0,0.00012792,2]
[418912743,1774533035010,-500.0,0.00012792,2]
[418912744,1774533035021,-500.0,0.00012792,2]
[418912745,1774533035031,-500.0,0.00012792,2]
[418912746,1774533035040,-500.0,0.00012792,2]
[418912747,1774533035050,-500.0,0.00012792,2]
[418912748,1774533035059,-500.0,0.00012792,2]
[418912749,1774533035069,-500.0,0.00012792,2]
[418912750,1774533035079,-500.0,0.00012792,2]
[418912751,1774533035090,-666.0,0.00012792,2]
[418912752,1774533035099,-500.0,0.00012792,2]
[418912753,1774533035110,-500.0,0.00012792,2]
[418912754,1774533035119,-500.0,0.00012792,2]
[418912755,1774533035128,-500.0,0.00012792,2]
[418912756,1774533035138,-500.0,0.00012792,2]
[418912757,1774533035150,-500.0,0.00012792,2]
[418912758,1774533035160,-500.0,0.00012792,2]
[418912759,1774533035169,-500.0,0.00012792,2]
[418912760,1774533035179,-500.0,0.00012792,2]
[418912761,1774533035188,-500.0,0.00012792,2]
[418912762,1774533035198,-500.0,0.00012792,2]
[418912763,1774533035207,-500.0,0.00012792,2]
[418912764,1774533035218,-500.0,0.00012792,2]
[418912765,1774533035227,-500.0,0.00012792,2]
[418912766,1774533035236,-500.0,0.00012792,2]
[418912767,1774533035246,-500.0,0.00012792,2]
[418912768,1774533035255,-500.0,0.00012792,2]
[418912769,1774533035264,-500.0,0.00012792,2]
[418912770,1774533035274,-500.0,0.00012792,2]
[418912771,1774533035283,-500.0,0.00012792,2]
[418912772,1774533035293,-500.0,0.00012792,2]
[418912773,1774533035303,-500.0,0.00012792,2]
[418912774,1774533035312,-500.0,0.00012792,2]
[418912775,1774533035322,-500.0,0.00012792,2]
[418912776,1774533035331,-500.0,0.00012792,2]
[418912777,1774533035341,-500.0,0.00012792,2]
[418912778,1774533035352,-500.0,0.00012792,2]
[418912779,1774533035361,-500.0,0.00012792,2]
[418912780,1774533035372,-500.0,0.00012792,2]
[418912781,1774533035678,-500.0,0.00012792,2]
[418912782,1774533035688,-500.0,0.00012792,2]
[418912783,1774533035698,-500.0,0.00012792,2]
[418912784,1774533035707,-500.0,0.00012792,2]
[418912785,1774533035716,-500.0,0.00012792,2]
[418912786,1774533035727,-500.0,0.00012792,2]
[418912787,1774533035736,-500.0,0.00012792,2]
[418912788,1774533035747,-500.0,0.00012792,2]
[418912789,1774533035757,-500.0,0.00012792,2]
[418912790,1774533035766,-500.0,0.00012792,2]
[418912791,1774533035775,-500.0,0.00012792,2]
[418912792,1774533035784,-500.0,0.00012792,2]
[418912793,1774533035794,-500.0,0.00012792,2]
[418912794,1774533035804,-500.0,0.00012792,2]
[418912795,1774533035813,-500.0,0.00012792,2]
[418912796,1774533035822,-500.0,0.00012792,2]
[418912797,1774533035832,-500.0,0.00012792,2]
[418912798,1774533035841,-500.0,0.00012792,2]
[418912799,1774533035850,-500.0,0.00012792,2]
[418912800,1774533035859,-500.0,0.00012792,2]
[418912801,1774533035868,-500.0,0.00012792,2]
[418912802,1774533035878,-500.0,0.00012792,2]
[418912803,1774533035888,-500.0,0.00012792,2]
[418912804,1774533035897,-500.0,0.00012792,2]
[418912805,1774533035907,-500.0,0.00012792,2]
[418912806,1774533035916,-500.0,0.00012792,2]
[418912807,1774533035925,-500.0,0.00012792,2]
[418912808,1774533035934,-500.0,0.00012792,2]
[418912809,1774533035944,-500.0,0.00012792,2]
[418912810,1774533035953,-808.0,0.00012792,2]
[418912811,1774533035962,-500.0,0.00012792,2]
[418912812,1774533035971,-500.0,0.00012792,2]
[418912813,1774533035980,-500.0,0.00012792,2]
[418912814,1774533035990,-500.0,0.00012792,2]
[418912815,1774533036000,-500.0,0.00012792,2]
[418912816,1774533036009,-500.0,0.00012792,2]
[418912817,1774533036019,-500.0,0.00012792,2]
[418912818,1774533036028,-500.0,0.00012792,2]
[418912819,1774533036037,-500.0,0.00012792,2]
[418912820,1774533036046,-500.0,0.00012792,2]
[418912821,1774533036055,-500.0,0.00012792,2]
[418912822,1774533036064,-500.0,0.00012792,2]
[418912823,1774533036074,-500.0,0.00012792,2]
[418912824,1774533036083,-500.0,0.00012792,2]
[418912825,1774533036092,-500.0,0.00012792,2]
[418912826,1774533036102,-868.0,0.00012792,2]
[418912827,1774533036111,-500.0,0.00012792,2]
[418912828,1774533036120,-500.0,0.00012792,2]
[418912829,1774533036129,-500.0,0.00012792,2]
[418912830,1774533036138,-500.0,0.00012792,2]
[418912831,1774533036147,-500.0,0.00012792,2]
[418912832,1774533036156,-500.0,0.00012792,2]
[418912833,1774533036175,-500.0,0.00012792,2]
[418912834,1774533036186,-500.0,0.00012792,2]
[418912835,1774533036196,-500.0,0.00012792,2]
[418912836,1774533036206,-500.0,0.00012792,2]
[418912837,1774533036216,-500.0,0.00012792,2]
[418912838,1774533036225,-500.0,0.00012792,2]
[418912839,1774533036235,-500.0,0.00012792,2]
[418912840,1774533036244,-500.0,0.00012792,2]
[418912841,1774533036254,-500.0,0.00012792,2]
[418912842,1774533036263,-500.0,0.00012792,2]
[418912843,1774533036273,-500.0,0.00012792,2]
[418912844,1774533036283,-500.0,0.00012792,2]
[418912845,1774533036292,-500.0,0.00012792,2]
[418912846,1774533036302,-500.0,0.00012792,2]
[418912847,1774533036312,-500.0,0.00012792,2]
[418912848,1774533036321,-500.0,0.00012792,2]
[418912849,1774533036331,-500.0,0.00012792,2]
[418912850,1774533036341,-500.0,0.00012792,2]
[418912851,1774533036351,-500.0,0.00012792,2]
[418912852,1774533036360,-500.0,0.00012792,2]
[418912853,1774533036369,-500.0,0.00012792,2]
[418912854,1774533036379,-500.0,0.00012792,2]
[418912855,1774533036389,-500.0,0.00012792,2]
[418912856,1774533036399,-500.0,0.00012792,2]
[418912857,1774533036408,-500.0,0.00012792,2]
[418912858,1774533036418,-500.0,0.00012792,2]
[418912859,1774533036428,-151.0,0.00012797,2]
[418912860,1774533036438,-151.0,0.00012797,2]
[418912861,1774533036447,-151.0,0.00012797,2]
[418912862,1774533036456,-500.0,0.00012799,2]
[418912863,1774533036466,-396.93342816,0.00012799,2]
[418912864,1774533036476,-500.0,0.00012799,2]
[418912865,1774533036485,-500.0,0.00012799,2]
[418912866,1774533036496,-523262.22997449,0.000128,2]
[418912867,1774533036530,-1675.51726259,0.000128,2]
[418912870,1774533038584,-1154.38291172,0.000128,2]
[418912871,1774533038597,-2408.3785355,0.000128,2]
[418912872,1774533038705,-1064.40417485,0.000128,2]
[418912873,1774533038717,-466.11431491,0.000128,2]
[418912874,1774533038729,-1141.30368379,0.000128,2]
[418912875,1774533038741,-97956.46268025,0.000128,2]
[418912876,1774533038754,-558.69299275,0.000128,2]
[418912877,1774533038768,-83139.77410323,0.000128,2]
[418912878,1774533038782,-387.75502244,0.000128,2]
[418912879,1774533038794,-847.0,0.000128,2]
[418912880,1774533038831,-160891.86403357,0.000128,2]
[418912881,1774533038843,-6552.18,0.000128,2]
[418912930,1774533041037,-705497.69720991,0.000128,2]
[418912931,1774533041047,-500.0,0.000128,2]
[418912932,1774533041057,-500.0,0.000128,2]
[418912933,1774533041067,-500.0,0.000128,2]
[418912934,1774533041077,-500.0,0.000128,2]
[418912935,1774533041088,-500.0,0.000128,2]
[418912936,1774533041099,-500.0,0.000128,2]
[418912937,1774533041110,-500.0,0.000128,2]
[418912938,1774533041120,-500.0,0.000128,2]
[418912939,1774533041131,-500.0,0.000128,2]
[418912940,1774533041141,-500.0,0.000128,2]
[418912941,1774533041152,-570.0,0.000128,2]
[418912942,1774533041161,-500.0,0.000128,2]
[418912943,1774533041171,-500.0,0.000128,2]
[418912944,1774533041180,-500.0,0.000128,2]
[418912945,1774533041189,-500.0,0.000128,2]
[418912946,1774533041199,-500.0,0.000128,2]
[418912947,1774533041209,-500.0,0.000128,2]
[418912948,1774533041218,-500.0,0.000128,2]
[418912949,1774533041228,-500.0,0.000128,2]
[418912950,1774533041238,-500.0,0.000128,2]
[418912951,1774533041248,-500.0,0.000128,2]
[418912952,1774533041259,-500.0,0.000128,2]
[418912953,1774533041269,-500.0,0.000128,2]
[418912954,1774533041279,-500.0,0.000128,2]
[418912955,1774533041288,-500.0,0.000128,2]
[418912956,1774533041298,-500.0,0.000128,2]
[418912957,1774533041308,-500.0,0.000128,2]
[418912958,1774533041317,-500.0,0.000128,2]
[418912959,1774533041327,-500.0,0.000128,2]
[418912960,1774533041336,-500.0,0.000128,2]
[418912961,1774533041345,-500.0,0.000128,2]
[418912962,1774533041355,-500.0,0.000128,2]
[418912963,1774533041364,-519.0,0.000128,2]
[418912964,1774533041373,-876.0,0.000128,2]
[418912965,1774533041383,-500.0,0.000128,2]
[418912966,1774533041392,-500.0,0.000128,2]
[418912967,1774533041401,-500.0,0.000128,2]
[418912968,1774533041411,-500.0,0.000128,2]
[418912969,1774533041421,-500.0,0.000128,2]
[418912970,1774533041431,-500.0,0.000128,2]
[418912971,1774533041440,-500.0,0.000128,2]
[418912972,1774533041449,-500.0,0.000128,2]
[418912973,1774533041459,-500.0,0.000128,2]
[418912975,1774533041468,-500.0,0.000128,2]
[418912977,1774533041478,-500.0,0.000128,2]
[418912978,1774533041488,-500.0,0.000128,2]
[418912980,1774533041499,-500.0,0.000128,2]
[418912981,1774533041508,-500.0,0.000128,2]
[418912982,1774533041518,-1345.0,0.00012811,2]
[418912983,1774533041528,-1045.0,0.00012811,2]
[418912984,1774533041538,-621.0,0.00012811,2]
[418912985,1774533041548,-3516.0,0.00012811,2]
[418912987,1774533041557,-1262.0,0.00012811,2]
[418912989,1774533041566,-3763.0,0.00012811,2]
[418912991,1774533041576,-418.463,0.00012811,2]
[418912993,1774533041585,-2467.0,0.00012811,2]
[418912995,1774533041595,-198.0,0.000129,3]
[418912997,1774533041604,-158.0,0.000129,3]
[418912999,1774533041613,-160.0,0.000129,3]
[418913001,1774533041623,-153.0,0.000129,2]
[418913003,1774533041632,-259.3687,0.000129,2]
[418913005,1774533041642,-250.0,0.00013,2]
[418913006,1774533041651,-162.7,0.00013037,2]
[418913007,1774533041660,-5502.48686477,0.00013056,2]
[418913008,1774533041669,-153.0,0.000134,2]
[418913009,1774533041679,-5502.48686477,0.00013411,2]
[418913010,1774533041688,-3240.0,0.00013425,2]
[418913011,1774533041698,-4609.0,0.00013613,2]
[418913012,1774533041709,-157.32120586,0.00013642,2]
[418913013,1774533041719,-701070.90353563,0.00013645,2]
[418913014,1774533041733,-5980.4932126,0.00013645,2]
[418913021,1774533043645,-54265.99628376,0.00013645,2]
[418913037,1774533046378,-6489.80158176,0.00013645,2]
[418913038,1774533046390,-69277.0,0.00013645,2]
[418913039,1774533046441,-624.79242443,0.00013645,2]
[418913040,1774533046562,-207630.0,0.00013645,2]
[418913041,1774533046851,-7673.95114763,0.00013645,2]
[418913046,1774533490772,1284.5,0.0001641,120]
[418913067,1774534231534,-579.76289887,9.999e-05,2]
[418913075,1774534231597,-620.23710113,9.999e-05,2]
[418913077,1774534231607,-1619.76289887,0.0001,2]
[418913078,1774534231671,-323.7785179,0.0001,2]
[418913079,1774534231680,-412.09017107,0.0001,2]
[418913080,1774534231692,-480.79900129,0.0001,2]
[418913097,1774534237624,-363.98,0.0001,2]
[418913098,1774534237637,-1495.82339273,0.0001,2]
[418913099,1774534237647,-157.03,0.00010728,2]
[418913100,1774534237656,-165.56177113,0.00010761,2]
[418913101,1774534237666,-250.0,0.00010793,2]
[418913102,1774534237676,-300.0,0.00010859,2]
[418913103,1774534237685,-177.53818913,0.0001086,2]
[418913104,1774534237697,-71.47181087,0.0001086,2]
[418913105,1774534237707,-1496.88316755,0.0001086,2]
[418913106,1774534237719,-451.02054186,0.0001086,2]
[418913107,1774534237732,-279.745,0.0001086,2]
[418913108,1774534237749,-11381.73032955,0.0001086,2]
[418913109,1774534237762,-634.45096104,0.0001086,2]
[418913110,1774534237772,-200.0,0.0001086,2]
[418913111,1774534237781,-500.0,0.0001086,2]
[418913112,1774534237790,-166.66,0.00010934,2]
[418913113,1774534237800,-150.0,0.00010959,2]
[418913114,1774534237809,-150.0,0.00010999,2]
[418913115,1774534237818,-1680.0,0.00010999,2]
[418913116,1774534237828,-9483.97890261,0.00011,2]
[418913117,1774534237839,-2500.0,0.00011281,2]
[418913118,1774534237848,-2056.7515,0.00011285,2]
[418913119,1774534237859,-1000.0,0.00011294,2]
[418913120,1774534237869,-166.66,0.00011295,2]
[418913121,1774534237878,-206.67246309,0.00011299,2]
[418913122,1774534237887,-500.0,0.00011299,2]
[418913123,1774534237897,-500.0,0.00011299,2]
[418913124,1774534237908,-500.0,0.00011299,2]
[418913125,1774534237917,-500.0,0.00011299,2]
[418913126,1774534237927,-500.0,0.00011299,2]
[418913127,1774534237936,-500.0,0.00011299,2]
[418913128,1774534237945,-500.0,0.00011299,2]
[418913129,1774534237955,-500.0,0.00011299,2]
[418913130,1774534237964,-500.0,0.00011299,2]
[418913131,1774534237974,-500.0,0.00011299,2]
[418913132,1774534237985,-369.59330448,0.00011299,2]
[418913133,1774534237995,-500.0,0.00011299,2]
[418913134,1774534238005,-500.0,0.00011299,2]
[418913135,1774534238014,-500.0,0.00011299,2]
[418913136,1774534238025,-500.0,0.00011299,2]
[418913137,1774534238034,-500.0,0.00011299,2]
[418913138,1774534238044,-500.0,0.00011299,2]
[418913139,1774534238054,-500.0,0.00011299,2]
[418913140,1774534238063,-500.0,0.00011299,2]
[418913141,1774534238073,-500.0,0.00011299,2]
[418913142,1774534238082,-500.0,0.00011299,2]
[418913143,1774534238092,-500.0,0.00011299,2]
[418913144,1774534238102,-500.0,0.00011299,2]
[418913145,1774534238111,-500.0,0.00011299,2]
[418913146,1774534238121,-500.0,0.00011299,2]
[418913147,1774534238130,-500.0,0.00011299,2]
[418913148,1774534238140,-500.0,0.00011299,2]
[418913149,1774534238150,-500.0,0.00011299,2]
[418913150,1774534238159,-500.0,0.00011299,2]
[418913151,1774534238169,-643.22714227,0.00011299,2]
[418913152,1774534238178,-643.22714227,0.00011299,2]
[418913153,1774534238188,-643.22714227,0.00011299,2]
[418913154,1774534238196,-643.22714227,0.00011299,2]
[418913155,1774534238206,-643.22714227,0.00011299,2]
[418913156,1774534238215,-643.22714227,0.00011299,2]
[418913157,1774534238225,-643.22714227,0.00011299,2]
[418913158,1774534238234,-643.22714227,0.00011299,2]
[418913159,1774534238243,-643.22714227,0.00011299,2]
[418913160,1774534238253,-643.22714227,0.00011299,2]
[418913161,1774534238263,-643.22714227,0.00011299,2]
[418913162,1774534238275,-643.22714227,0.00011299,2]
[418913163,1774534238284,-643.22714227,0.00011299,2]
[418913164,1774534238294,-643.22714227,0.00011299,2]
[418913165,1774534238304,-643.22714227,0.00011299,2]
[418913166,1774534238313,-643.22714227,0.00011299,2]
[418913167,1774534238322,-643.22714227,0.00011299,2]
[418913168,1774534238331,-643.22714227,0.00011299,2]
[418913169,1774534238340,-643.22714227,0.00011299,2]
[418913170,1774534238350,-643.22714227,0.00011299,2]
[418913171,1774534238359,-643.22714227,0.00011299,2]
[418913172,1774534238369,-643.22714227,0.00011299,2]
[418913173,1774534238378,-643.22714227,0.00011299,2]
[418913174,1774534238388,-643.22714227,0.00011299,2]
[418913175,1774534238397,-643.22714227,0.00011299,2]
[418913176,1774534238407,-643.22714227,0.00011299,2]
[418913177,1774534238416,-643.22714227,0.00011299,2]
[418913178,1774534238426,-643.22714227,0.00011299,2]
[418913179,1774534238436,-643.22714227,0.00011299,2]
[418913180,1774534238445,-643.22714227,0.00011299,2]
[418913181,1774534238454,-631.53210333,0.00011299,2]
[418913182,1774534238465,-631.53210333,0.00011299,2]
[418913183,1774534238474,-631.53210333,0.00011299,2]
[418913184,1774534238484,-631.53210333,0.00011299,2]
[418913185,1774534238494,-631.53210333,0.00011299,2]
[418913186,1774534238504,-631.53210333,0.00011299,2]
[418913187,1774534238513,-631.53210333,0.00011299,2]
[418913188,1774534238526,-631.53210333,0.00011299,2]
[418913189,1774534238535,-631.53210333,0.00011299,2]
[418913190,1774534238544,-631.53210333,0.00011299,2]
[418913191,1774534238554,-631.53210333,0.00011299,2]
[418913192,1774534238564,-631.53210333,0.00011299,2]
[418913193,1774534238574,-631.53210333,0.00011299,2]
[418913194,1774534238583,-631.53210333,0.00011299,2]
[418913195,1774534238592,-631.53210333,0.00011299,2]
[418913196,1774534238602,-631.53210333,0.00011299,2]
[418913197,1774534238612,-631.53210333,0.00011299,2]
[418913198,1774534238622,-606.27081919,0.00011299,2]
[418913199,1774534238631,-606.27081919,0.00011299,2]
[418913200,1774534238641,-606.27081919,0.00011299,2]
[418913201,1774534238650,-606.27081919,0.00011299,2]
[418913202,1774534238661,-606.27081919,0.00011299,2]
[418913203,1774534238670,-606.27081919,0.00011299,2]
[418913204,1774534238680,-606.27081919,0.00011299,2]
[418913205,1774534238690,-606.27081919,0.00011299,2]
[418913206,1774534238700,-606.27081919,0.00011299,2]
[418913207,1774534238711,-606.27081919,0.00011299,2]
[418913208,1774534238721,-606.27081919,0.00011299,2]
[418913209,1774534238730,-606.27081919,0.00011299,2]
[418913210,1774534238739,-606.27081919,0.00011299,2]
[418913211,1774534238749,-606.27081919,0.00011299,2]
[418913212,1774534238759,-606.27081919,0.00011299,2]
[418913213,1774534238768,-151.01643237,0.000113,2]
[418913214,1774534238777,-152.67049583,0.000113,2]
[418913215,1774534238787,-999.99,0.000113,2]
[418913216,1774534238796,-5447.73,0.000113,2]
[418913217,1774534238806,-500.0,0.000113,2]
[418913218,1774534238815,-209.91479856,0.000113,2]
[418913219,1774534238824,-528.03470928,0.000113,2]
[418913220,1774534238834,-414.57999999,0.000113,2]
[418913221,1774534238843,-54710.7994218,0.000113,2]
[418913222,1774534238852,-2912.788,0.00011306,2]
[418913223,1774534238862,-190.439,0.00011306,2]
[418913224,1774534238871,-295.92490409,0.00011307,2]
[418913225,1774534238880,-165.81014655,0.00011307,2]
[418913226,1774534238889,-8916.21344992,0.00011307,2]
[418913227,1774534238898,-32419.0,0.0001137,2]
[418913228,1774534238908,-500.0,0.00011373,2]
[418913229,1774534238917,-501.9357854,0.00011373,2]
[418913230,1774534238926,-504.28717166,0.00011373,2]
[418913231,1774534238935,-500.62117496,0.00011373,2]
[418913232,1774534238943,-500.0,0.00011373,2]
[418913233,1774534238953,-376.86536654,0.00011375,2]
[418913234,1774534238962,-81590.00443992,0.00011379,2]
[418913235,1774534238971,-30496.35201831,0.0001138,2]
[418913236,1774534238980,-157.32120586,0.00011382,2]
[418913237,1774534238990,-401.76123339,0.00011384,2]
[418913238,1774534238999,-380.30441202,0.00011384,2]
[418913239,1774534239008,-500.0,0.00011384,2]
[418913240,1774534239018,-500.0,0.00011384,2]
[418913241,1774534239027,-649.65265799,0.00011384,2]
[418913242,1774534239036,-500.0,0.00011384,2]
[418913243,1774534239045,-500.0,0.00011384,2]
[418913244,1774534239054,-500.0,0.00011384,2]
[418913245,1774534239064,-500.0,0.00011384,2]
[418913246,1774534239073,-1105417.39423206,0.00011385,2]
[418913247,1774534239087,-3478.5,0.00011385,2]
[418913248,1774534239099,-3284.59443519,0.00011385,2]
[418913249,1774534239113,-14941.38943275,0.00011385,2]
[418913250,1774534239123,-200.0,0.000114,2]
[418913251,1774534239134,-151.0,0.000114,2]
[418913252,1774534239144,-151.0,0.000114,2]
[418913253,1774534239154,-151.0,0.000114,2]
[418913254,1774534239165,-151.0,0.000114,2]
[418913255,1774534239174,-151.0,0.000114,2]
[418913256,1774534239184,-151.0,0.000114,2]
[418913257,1774534239193,-151.0,0.000114,2]
[418913258,1774534239204,-151.0,0.000114,2]
[418913259,1774534239214,-151.0,0.000114,2]
[418913260,1774534239223,-151.0,0.000114,2]
[418913261,1774534239233,-151.0,0.000114,2]
[418913262,1774534239242,-151.0,0.000114,2]
[418913263,1774534239251,-151.0,0.000114,2]
[418913264,1774534239260,-151.0,0.000114,2]
[418913265,1774534239270,-151.0,0.000114,2]